Workbook

Sheet Лист1
A1: №КД | B1: Название | C1: кол-во | D1: дата | E1: ответств. | F1: статус | G1: служебн.1 | H1: служебн.2 | I1: служебн.3 | J1: служебн.4 | K1: служебн.5 | M1: kod | N1: kod_z | O1: im | P1: kol | Q1: srok | R1: men | S1: sts | T1: zv
A2: 15457 | B2: =VLOOKUP(Рабочая[[#This Row],[№КД]],изБД[],3,0) ->  | C2: =VLOOKUP(Рабочая[[#This Row],[№КД]],изБД[],4,0) ->  | D2: =VLOOKUP(Рабочая[[#This Row],[№КД]],изБД[],5,0) ->  | E2: =VLOOKUP(Рабочая[[#This Row],[№КД]],изБД[],6,0) ->  | F2: =VLOOKUP(Рабочая[[#This Row],[№КД]],изБД[],7,0) ->  | G2: =VLOOKUP(Рабочая[[#This Row],[№КД]],изБД[],2,0) ->  | H2: =VLOOKUP(Рабочая[[#This Row],[№КД]],изБД[],8,0) ->  | I2: =Рабочая[[#This Row],[кол-во]]*Рабочая[[#This Row],[служебн.2]] ->  | M2: 15458 | N2: 1245 | O2: Изделие 1 | P2: 12 | Q2: 2015-08-25 | R2: Иванов | S2: архив | T2: 2
A3: 15458 | B3: Изделие 1 | C3: 12 | D3: 2015-08-25 | E3: Иванов | F3: архив | G3: 1245 | H3: 2 | I3: 24 | M3: 15459 | N3: 1246 | O3: Изделие 2 | P3: 45 | Q3: 2015-08-25 | R3: Петров | S3: архив | T3: 4
A4: 15459 | B4: Изделие 2 | C4: 45 | D4: 2015-08-25 | E4: Петров | F4: архив | G4: 1246 | H4: 4 | I4: 180 | M4: 15460 | N4: 1247 | O4: Изделие 3 | P4: 48 | Q4: 2016-08-25 | R4: Сидоров | S4: архив | T4: 65
A5: 15460 | B5: =VLOOKUP(Рабочая[[#This Row],[№КД]],изБД[],3,0) -> Изделие 3 | C5: =VLOOKUP(Рабочая[[#This Row],[№КД]],изБД[],4,0) -> 48 | D5: =VLOOKUP(Рабочая[[#This Row],[№КД]],изБД[],5,0) -> 2016-08-25 | E5: =VLOOKUP(Рабочая[[#This Row],[№КД]],изБД[],6,0) -> Сидоров | F5: =VLOOKUP(Рабочая[[#This Row],[№КД]],изБД[],7,0) -> архив | G5: =VLOOKUP(Рабочая[[#This Row],[№КД]],изБД[],2,0) -> 1247 | H5: =VLOOKUP(Рабочая[[#This Row],[№КД]],изБД[],8,0) -> 65 | I5: =Рабочая[[#This Row],[кол-во]]*Рабочая[[#This Row],[служебн.2]] -> 3120 | M5: 15461 | N5: 1248 | O5: Изделие 4 | P5: 54 | Q5: 2016-08-25 | R5: Иванов | S5: архив | T5: 3
A6: 15461 | B6: =VLOOKUP(Рабочая[[#This Row],[№КД]],изБД[],3,0) -> Изделие 4 | C6: =VLOOKUP(Рабочая[[#This Row],[№КД]],изБД[],4,0) -> 54 | D6: =VLOOKUP(Рабочая[[#This Row],[№КД]],изБД[],5,0) -> 2016-08-25 | E6: =VLOOKUP(Рабочая[[#This Row],[№КД]],изБД[],6,0) -> Иванов | F6: =VLOOKUP(Рабочая[[#This Row],[№КД]],изБД[],7,0) -> архив | G6: =VLOOKUP(Рабочая[[#This Row],[№КД]],изБД[],2,0) -> 1248 | H6: =VLOOKUP(Рабочая[[#This Row],[№КД]],изБД[],8,0) -> 3 | I6: =Рабочая[[#This Row],[кол-во]]*Рабочая[[#This Row],[служебн.2]] -> 162 | M6: 15462 | N6: 1249 | O6: Изделие 5 | P6: 321 | Q6: 2016-08-25 | R6: Петров | S6: архив | T6: 454
A7: 15462 | B7: =VLOOKUP(Рабочая[[#This Row],[№КД]],изБД[],3,0) -> Изделие 5 | C7: =VLOOKUP(Рабочая[[#This Row],[№КД]],изБД[],4,0) -> 321 | D7: =VLOOKUP(Рабочая[[#This Row],[№КД]],изБД[],5,0) -> 2016-08-25 | E7: =VLOOKUP(Рабочая[[#This Row],[№КД]],изБД[],6,0) -> Петров | F7: =VLOOKUP(Рабочая[[#This Row],[№КД]],изБД[],7,0) -> архив | G7: =VLOOKUP(Рабочая[[#This Row],[№КД]],изБД[],2,0) -> 1249 | H7: =VLOOKUP(Рабочая[[#This Row],[№КД]],изБД[],8,0) -> 454 | I7: =Рабочая[[#This Row],[кол-во]]*Рабочая[[#This Row],[служебн.2]] -> 145734 | M7: 15463 | N7: 1250 | O7: Изделие 6 | P7: 546 | Q7: 2016-09-25 | R7: Сидоров | S7: в работе | T7: 6
A8: 15463 | B8: =VLOOKUP(Рабочая[[#This Row],[№КД]],изБД[],3,0) -> Изделие 6 | C8: =VLOOKUP(Рабочая[[#This Row],[№КД]],изБД[],4,0) -> 546 | D8: =VLOOKUP(Рабочая[[#This Row],[№КД]],изБД[],5,0) -> 2016-09-25 | E8: =VLOOKUP(Рабочая[[#This Row],[№КД]],изБД[],6,0) -> Сидоров | F8: =VLOOKUP(Рабочая[[#This Row],[№КД]],изБД[],7,0) -> в работе | G8: =VLOOKUP(Рабочая[[#This Row],[№КД]],изБД[],2,0) -> 1250 | H8: =VLOOKUP(Рабочая[[#This Row],[№КД]],изБД[],8,0) -> 6 | I8: =Рабочая[[#This Row],[кол-во]]*Рабочая[[#This Row],[служебн.2]] -> 3276 | M8: 15464 | N8: 1251 | O8: Изделие 7 | P8: 54 | Q8: 2015-09-25 | R8: Иванов | S8: архив | T8: 2
A9: 15464 | B9: Изделие 7 | C9: 54 | D9: 2015-09-25 | E9: Иванов | F9: архив | G9: 1251 | H9: 2 | I9: 108 | M9: 15465 | N9: 1252 | O9: Изделие 8 | P9: 51 | Q9: 2015-08-25 | R9: Петров | S9: в работе | T9: 54
A10: 15465 | B10: =VLOOKUP(Рабочая[[#This Row],[№КД]],изБД[],3,0) -> Изделие 8 | C10: =VLOOKUP(Рабочая[[#This Row],[№КД]],изБД[],4,0) -> 51 | D10: =VLOOKUP(Рабочая[[#This Row],[№КД]],изБД[],5,0) -> 2015-08-25 | E10: =VLOOKUP(Рабочая[[#This Row],[№КД]],изБД[],6,0) -> Петров | F10: =VLOOKUP(Рабочая[[#This Row],[№КД]],изБД[],7,0) -> в работе | G10: =VLOOKUP(Рабочая[[#This Row],[№КД]],изБД[],2,0) -> 1252 | H10: =VLOOKUP(Рабочая[[#This Row],[№КД]],изБД[],8,0) -> 54 | I10: =Рабочая[[#This Row],[кол-во]]*Рабочая[[#This Row],[служебн.2]] -> 2754 | M10: 15466 | N10: 1253 | O10: Изделие 9 | P10: 25 | Q10: 2016-08-25 | R10: Сидоров | S10: архив | T10: 2
A11: 15466 | B11: =VLOOKUP(Рабочая[[#This Row],[№КД]],изБД[],3,0) -> Изделие 9 | C11: =VLOOKUP(Рабочая[[#This Row],[№КД]],изБД[],4,0) -> 25 | D11: =VLOOKUP(Рабочая[[#This Row],[№КД]],изБД[],5,0) -> 2016-08-25 | E11: =VLOOKUP(Рабочая[[#This Row],[№КД]],изБД[],6,0) -> Сидоров | F11: =VLOOKUP(Рабочая[[#This Row],[№КД]],изБД[],7,0) -> архив | G11: =VLOOKUP(Рабочая[[#This Row],[№КД]],изБД[],2,0) -> 1253 | H11: =VLOOKUP(Рабочая[[#This Row],[№КД]],изБД[],8,0) -> 2 | I11: =Рабочая[[#This Row],[кол-во]]*Рабочая[[#This Row],[служебн.2]] -> 50 | M11: 15467 | N11: 1254 | O11: Изделие 10 | P11: 5 | Q11: 2016-09-25 | R11: Иванов | S11: в работе | T11: 5
A12: 15467 | B12: =VLOOKUP(Рабочая[[#This Row],[№КД]],изБД[],3,0) -> Изделие 10 | C12: =VLOOKUP(Рабочая[[#This Row],[№КД]],изБД[],4,0) -> 5 | D12: =VLOOKUP(Рабочая[[#This Row],[№КД]],изБД[],5,0) -> 2016-09-25 | E12: =VLOOKUP(Рабочая[[#This Row],[№КД]],изБД[],6,0) -> Иванов | F12: =VLOOKUP(Рабочая[[#This Row],[№КД]],изБД[],7,0) -> в работе | G12: =VLOOKUP(Рабочая[[#This Row],[№КД]],изБД[],2,0) -> 1254 | H12: =VLOOKUP(Рабочая[[#This Row],[№КД]],изБД[],8,0) -> 5 | I12: =Рабочая[[#This Row],[кол-во]]*Рабочая[[#This Row],[служебн.2]] -> 25 | M12: 15468 | N12: 1255 | O12: Изделие 11 | P12: 25454 | Q12: 2016-09-25 | R12: Петров | S12: архив | T12: 45
A13: 15468 | B13: =VLOOKUP(Рабочая[[#This Row],[№КД]],изБД[],3,0) -> Изделие 11 | C13: =VLOOKUP(Рабочая[[#This Row],[№КД]],изБД[],4,0) -> 25454 | D13: =VLOOKUP(Рабочая[[#This Row],[№КД]],изБД[],5,0) -> 2016-09-25 | E13: =VLOOKUP(Рабочая[[#This Row],[№КД]],изБД[],6,0) -> Петров | F13: =VLOOKUP(Рабочая[[#This Row],[№КД]],изБД[],7,0) -> архив | G13: =VLOOKUP(Рабочая[[#This Row],[№КД]],изБД[],2,0) -> 1255 | H13: =VLOOKUP(Рабочая[[#This Row],[№КД]],изБД[],8,0) -> 45 | I13: =Рабочая[[#This Row],[кол-во]]*Рабочая[[#This Row],[служебн.2]] -> 1145430 | M13: 15469 | N13: 1256 | O13: Изделие 12 | P13: 21 | Q13: 2016-09-25 | R13: Сидоров | S13: в работе | T13: 45
A14: 15469 | B14: =VLOOKUP(Рабочая[[#This Row],[№КД]],изБД[],3,0) -> Изделие 12 | C14: =VLOOKUP(Рабочая[[#This Row],[№КД]],изБД[],4,0) -> 21 | D14: =VLOOKUP(Рабочая[[#This Row],[№КД]],изБД[],5,0) -> 2016-09-25 | E14: =VLOOKUP(Рабочая[[#This Row],[№КД]],изБД[],6,0) -> Сидоров | F14: =VLOOKUP(Рабочая[[#This Row],[№КД]],изБД[],7,0) -> в работе | G14: =VLOOKUP(Рабочая[[#This Row],[№КД]],изБД[],2,0) -> 1256 | H14: =VLOOKUP(Рабочая[[#This Row],[№КД]],изБД[],8,0) -> 45 | I14: =Рабочая[[#This Row],[кол-во]]*Рабочая[[#This Row],[служебн.2]] -> 945 | M14: 15470 | N14: 1257 | O14: Изделие 13 | P14: 545 | Q14: 2016-09-25 | R14: Иванов | S14: в работе | T14: 23
A15: 15470 | B15: =VLOOKUP(Рабочая[[#This Row],[№КД]],изБД[],3,0) -> Изделие 13 | C15: =VLOOKUP(Рабочая[[#This Row],[№КД]],изБД[],4,0) -> 545 | D15: =VLOOKUP(Рабочая[[#This Row],[№КД]],изБД[],5,0) -> 2016-09-25 | E15: =VLOOKUP(Рабочая[[#This Row],[№КД]],изБД[],6,0) -> Иванов | F15: =VLOOKUP(Рабочая[[#This Row],[№КД]],изБД[],7,0) -> в работе | G15: =VLOOKUP(Рабочая[[#This Row],[№КД]],изБД[],2,0) -> 1257 | H15: =VLOOKUP(Рабочая[[#This Row],[№КД]],изБД[],8,0) -> 23 | I15: =Рабочая[[#This Row],[кол-во]]*Рабочая[[#This Row],[служебн.2]] -> 12535 | M15: 15471 | N15: 1258 | O15: Изделие 14 | P15: 5515 | Q15: 2016-11-25 | R15: Петров | S15: архив | T15: 56
A16: 15471 | B16: =VLOOKUP(Рабочая[[#This Row],[№КД]],изБД[],3,0) -> Изделие 14 | C16: =VLOOKUP(Рабочая[[#This Row],[№КД]],изБД[],4,0) -> 5515 | D16: =VLOOKUP(Рабочая[[#This Row],[№КД]],изБД[],5,0) -> 2016-11-25 | E16: =VLOOKUP(Рабочая[[#This Row],[№КД]],изБД[],6,0) -> Петров | F16: =VLOOKUP(Рабочая[[#This Row],[№КД]],изБД[],7,0) -> архив | G16: =VLOOKUP(Рабочая[[#This Row],[№КД]],изБД[],2,0) -> 1258 | H16: =VLOOKUP(Рабочая[[#This Row],[№КД]],изБД[],8,0) -> 56 | I16: =Рабочая[[#This Row],[кол-во]]*Рабочая[[#This Row],[служебн.2]] -> 308840 | M16: 15472 | N16: 1259 | O16: Изделие 15 | P16: 2212 | Q16: 2016-08-25 | R16: Сидоров | S16: план | T16: 2
A17: 15472 | B17: =VLOOKUP(Рабочая[[#This Row],[№КД]],изБД[],3,0) -> Изделие 15 | C17: =VLOOKUP(Рабочая[[#This Row],[№КД]],изБД[],4,0) -> 2212 | D17: =VLOOKUP(Рабочая[[#This Row],[№КД]],изБД[],5,0) -> 2016-08-25 | E17: =VLOOKUP(Рабочая[[#This Row],[№КД]],изБД[],6,0) -> Сидоров | F17: =VLOOKUP(Рабочая[[#This Row],[№КД]],изБД[],7,0) -> план | G17: =VLOOKUP(Рабочая[[#This Row],[№КД]],изБД[],2,0) -> 1259 | H17: =VLOOKUP(Рабочая[[#This Row],[№КД]],изБД[],8,0) -> 2 | I17: =Рабочая[[#This Row],[кол-во]]*Рабочая[[#This Row],[служебн.2]] -> 4424 | M17: 15473 | N17: 1260 | O17: Изделие 16 | P17: 63 | Q17: 2016-11-25 | R17: Иванов | S17: в работе | T17: 5
A18: 15473 | B18: =VLOOKUP(Рабочая[[#This Row],[№КД]],изБД[],3,0) -> Изделие 16 | C18: =VLOOKUP(Рабочая[[#This Row],[№КД]],изБД[],4,0) -> 63 | D18: =VLOOKUP(Рабочая[[#This Row],[№КД]],изБД[],5,0) -> 2016-11-25 | E18: =VLOOKUP(Рабочая[[#This Row],[№КД]],изБД[],6,0) -> Иванов | F18: =VLOOKUP(Рабочая[[#This Row],[№КД]],изБД[],7,0) -> в работе | G18: =VLOOKUP(Рабочая[[#This Row],[№КД]],изБД[],2,0) -> 1260 | H18: =VLOOKUP(Рабочая[[#This Row],[№КД]],изБД[],8,0) -> 5 | I18: =Рабочая[[#This Row],[кол-во]]*Рабочая[[#This Row],[служебн.2]] -> 315 | M18: 15474 | N18: 1261 | O18: Изделие 17 | P18: 54 | Q18: 2016-08-25 | R18: Петров | S18: план | T18: 4
A19: 15474 | B19: =VLOOKUP(Рабочая[[#This Row],[№КД]],изБД[],3,0) -> Изделие 17 | C19: =VLOOKUP(Рабочая[[#This Row],[№КД]],изБД[],4,0) -> 54 | D19: =VLOOKUP(Рабочая[[#This Row],[№КД]],изБД[],5,0) -> 2016-08-25 | E19: =VLOOKUP(Рабочая[[#This Row],[№КД]],изБД[],6,0) -> Петров | F19: =VLOOKUP(Рабочая[[#This Row],[№КД]],изБД[],7,0) -> план | G19: =VLOOKUP(Рабочая[[#This Row],[№КД]],изБД[],2,0) -> 1261 | H19: =VLOOKUP(Рабочая[[#This Row],[№КД]],изБД[],8,0) -> 4 | I19: =Рабочая[[#This Row],[кол-во]]*Рабочая[[#This Row],[служебн.2]] -> 216 | M19: 15475 | N19: 1262 | O19: Изделие 18 | P19: 1 | Q19: 2016-11-25 | R19: Сидоров | S19: план | T19: 54
A20: 15475 | B20: =VLOOKUP(Рабочая[[#This Row],[№КД]],изБД[],3,0) -> Изделие 18 | C20: =VLOOKUP(Рабочая[[#This Row],[№КД]],изБД[],4,0) -> 1 | D20: =VLOOKUP(Рабочая[[#This Row],[№КД]],изБД[],5,0) -> 2016-11-25 | E20: =VLOOKUP(Рабочая[[#This Row],[№КД]],изБД[],6,0) -> Сидоров | F20: =VLOOKUP(Рабочая[[#This Row],[№КД]],изБД[],7,0) -> план | G20: =VLOOKUP(Рабочая[[#This Row],[№КД]],изБД[],2,0) -> 1262 | H20: =VLOOKUP(Рабочая[[#This Row],[№КД]],изБД[],8,0) -> 54 | I20: =Рабочая[[#This Row],[кол-во]]*Рабочая[[#This Row],[служебн.2]] -> 54
O22: Данные из БД
B27: 30 сентября в текстовый/числовой вид должны перейти только синие строки.
B28: Условие: статус АРХИВ и дата БОЛЕЕ месяца от сегодня

Sheet Лист2

Sheet Лист3
